[Event "*** Titled Tuesday Blitz"]
[Site "Chess.com"]
[Date "2020.11.03"]
[Round "7"]
[White "IMDT02"]
[Black "Shubinkirill2003"]
[Result "0-1"]
[WhiteElo "2526"]
[BlackElo "2686"]
[TimeControl "180+1"]
[EndTime "11:17:07 PST"]
[Termination "Shubinkirill2003 won by resignation"]

1. d4 {[%clk 0:03:00.9]} 1... e6 {[%clk 0:03:00.1]} 2. c4 {[%clk 0:03:00.6]}
2... Nf6 {[%clk 0:03:00.2]} 3. Nc3 {[%clk 0:03:00.5]} 3... Bb4 {[%clk
0:02:59.5]} 4. e3 {[%clk 0:03:00.9]} 4... O-O {[%clk 0:02:59.2]} 5. Ne2 {[%clk
0:03:01.5]} 5... d5 {[%clk 0:02:58.8]} 6. a3 {[%clk 0:03:01.4]} 6... Be7 {[%clk
0:02:58.7]} 7. cxd5 {[%clk 0:03:01.2]} 7... exd5 {[%clk 0:02:58.9]} 8. Nf4
{[%clk 0:03:01.8]} 8... c6 {[%clk 0:02:59]} 9. Bd3 {[%clk 0:03:02]} 9... Na6
{[%clk 0:02:59]} 10. O-O {[%clk 0:03:01.5]} 10... Nc7 {[%clk 0:02:58.9]} 11. f3
{[%clk 0:03:01.1]} 11... Ne6 {[%clk 0:02:58.8]} 12. Bc2 {[%clk 0:03:00.4]} 12...
Nxf4 {[%clk 0:02:58.9]} 13. exf4 {[%clk 0:03:01.3]} 13... Ne8 {[%clk 0:02:58.8]}
14. f5 {[%clk 0:02:58.2]} 14... Nd6 {[%clk 0:02:57.7]} 15. g4 {[%clk 0:02:57.2]}
15... Re8 {[%clk 0:02:49.9]} 16. Qd3 {[%clk 0:02:55.7]} 16... Bh4 {[%clk
0:02:27.7]} 17. Bf4 {[%clk 0:02:46.3]} 17... h6 {[%clk 0:02:15.7]} 18. Kg2
{[%clk 0:02:25.8]} 18... Bg5 {[%clk 0:02:12.7]} 19. Bg3 {[%clk 0:02:01.9]} 19...
Nc4 {[%clk 0:02:06.5]} 20. Rf2 {[%clk 0:01:47.3]} 20... Re3 {[%clk 0:01:58.6]}
21. Qf1 {[%clk 0:01:41.7]} 21... Rxc3 {[%clk 0:01:56.2]} 0-1

[Event "*** Titled Tuesday Blitz"]
[Site "Chess.com"]
[Date "2020.11.03"]
[Round "7"]
[White "grzechu96"]
[Black "lucachess49"]
[Result "1-0"]
[WhiteElo "2690"]
[BlackElo "2373"]
[TimeControl "180+1"]
[EndTime "11:17:12 PST"]
[Termination "grzechu96 won by resignation"]

1. e4 {[%clk 0:03:00.9]} 1... e5 {[%clk 0:02:59.3]} 2. Nf3 {[%clk 0:03:01.1]}
2... Nc6 {[%clk 0:02:58.9]} 3. d4 {[%clk 0:03:01.4]} 3... exd4 {[%clk
0:02:58.3]} 4. Nxd4 {[%clk 0:03:02.3]} 4... Nf6 {[%clk 0:02:57.9]} 5. Nxc6
{[%clk 0:03:01.7]} 5... bxc6 {[%clk 0:02:57.8]} 6. e5 {[%clk 0:03:02.2]} 6...
Qe7 {[%clk 0:02:58.3]} 7. Qe2 {[%clk 0:03:02.1]} 7... Nd5 {[%clk 0:02:58.3]} 8.
c4 {[%clk 0:03:02.8]} 8... Nb6 {[%clk 0:02:57.1]} 9. Nc3 {[%clk 0:03:01.8]} 9...
Ba6 {[%clk 0:02:39.4]} 10. b3 {[%clk 0:03:01.6]} 10... Qe6 {[%clk 0:02:37.3]}
11. Bb2 {[%clk 0:02:49.7]} 11... Bb4 {[%clk 0:02:14.5]} 12. O-O-O {[%clk
0:02:49.1]} 12... O-O {[%clk 0:02:13.6]} 13. f4 {[%clk 0:02:49.4]} 13... Rfe8
{[%clk 0:02:02.9]} 14. Qf3 {[%clk 0:02:45.1]} 14... d5 {[%clk 0:01:50.2]} 15.
cxd5 {[%clk 0:02:35.5]} 15... cxd5 {[%clk 0:01:23.5]} 16. Bxa6 {[%clk
0:02:35.2]} 16... c5 {[%clk 0:01:24]} 17. Nxd5 {[%clk 0:02:17]} 17... Nxd5
{[%clk 0:01:21.5]} 18. Bc4 {[%clk 0:02:17.2]} 1-0

[Event "*** Titled Tuesday Blitz"]
[Site "Chess.com"]
[Date "2020.11.03"]
[Round "7"]
[White "kflorian98"]
[Black "Indianlad"]
[Result "0-1"]
[WhiteElo "2755"]
[BlackElo "2945"]
[TimeControl "180+1"]
[EndTime "11:17:18 PST"]
[Termination "Indianlad won by checkmate"]

1. e4 {[%clk 0:02:59.8]} 1... c6 {[%clk 0:02:59.3]} 2. Nc3 {[%clk 0:02:58.5]}
2... d5 {[%clk 0:02:59.6]} 3. f4 {[%clk 0:02:59.3]} 3... dxe4 {[%clk 0:02:58]}
4. Nxe4 {[%clk 0:03:00.2]} 4... Nf6 {[%clk 0:02:57.7]} 5. d3 {[%clk 0:03:00.8]}
5... g6 {[%clk 0:02:54.5]} 6. Nf3 {[%clk 0:02:59.6]} 6... Bg7 {[%clk 0:02:54.7]}
7. g3 {[%clk 0:03:00.1]} 7... O-O {[%clk 0:02:55.1]} 8. Bg2 {[%clk 0:03:00]}
8... Nxe4 {[%clk 0:02:55.4]} 9. dxe4 {[%clk 0:03:00.9]} 9... Qb6 {[%clk
0:02:55.5]} 10. c3 {[%clk 0:02:58.9]} 10... Bg4 {[%clk 0:02:44.7]} 11. Qe2
{[%clk 0:02:55.3]} 11... Nd7 {[%clk 0:02:42.7]} 12. Be3 {[%clk 0:02:54.5]} 12...
Qc7 {[%clk 0:02:42.9]} 13. e5 {[%clk 0:02:39.4]} 13... f6 {[%clk 0:02:35.9]} 14.
O-O {[%clk 0:02:19.1]} 14... fxe5 {[%clk 0:02:33.1]} 15. Qc4+ {[%clk 0:02:19.4]}
15... e6 {[%clk 0:02:23.4]} 16. Ng5 {[%clk 0:02:05.2]} 16... Nb6 {[%clk
0:02:21]} 17. Qb3 {[%clk 0:01:57.6]} 17... Nd5 {[%clk 0:02:20.8]} 18. Bc5 {[%clk
0:01:53.4]} 18... exf4 {[%clk 0:02:17.1]} 19. Bxf8 {[%clk 0:01:51.9]} 19... Rxf8
{[%clk 0:02:17.6]} 20. Rae1 {[%clk 0:01:42.6]} 20... fxg3 {[%clk 0:02:14.4]} 21.
Rxf8+ {[%clk 0:01:40.6]} 21... Bxf8 {[%clk 0:02:14.6]} 22. Nxe6 {[%clk
0:01:33.7]} 22... gxh2+ {[%clk 0:02:14.8]} 23. Kh1 {[%clk 0:01:33.4]} 23... Qg3
{[%clk 0:02:15.2]} 24. Qd1 {[%clk 0:01:26.4]} 24... Bxd1 {[%clk 0:02:15]} 25.
Rf1 {[%clk 0:01:22.7]} 25... Bd6 {[%clk 0:02:11.6]} 26. c4 {[%clk 0:01:20.6]}
26... Ne3 {[%clk 0:02:11.6]} 27. c5 {[%clk 0:01:20.4]} 27... Qxg2# {[%clk
0:02:11.7]} 0-1

[Event "*** Titled Tuesday Blitz"]
[Site "Chess.com"]
[Date "2020.11.03"]
[Round "7"]
[White "Vuk2000"]
[Black "brunomorado"]
[Result "1-0"]
[WhiteElo "2644"]
[BlackElo "2442"]
[TimeControl "180+1"]
[EndTime "11:17:19 PST"]
[Termination "Vuk2000 won by resignation"]

1. d4 {[%clk 0:03:00.9]} 1... d5 {[%clk 0:03:00.2]} 2. Bf4 {[%clk 0:03:00.7]}
2... Bf5 {[%clk 0:02:57.4]} 3. e3 {[%clk 0:03:01]} 3... Nf6 {[%clk 0:02:56.9]}
4. c4 {[%clk 0:03:01.1]} 4... e6 {[%clk 0:02:53.2]} 5. Nc3 {[%clk 0:03:00.9]}
5... c6 {[%clk 0:02:51.2]} 6. Qb3 {[%clk 0:03:00.7]} 6... Qb6 {[%clk 0:02:50.5]}
7. Nf3 {[%clk 0:02:59.3]} 7... Nbd7 {[%clk 0:02:48.2]} 8. c5 {[%clk 0:02:58.8]}
8... Qxb3 {[%clk 0:02:47.4]} 9. axb3 {[%clk 0:02:59.7]} 9... a6 {[%clk
0:02:47.1]} 10. Nh4 {[%clk 0:02:34.8]} 10... Bg6 {[%clk 0:02:41.9]} 11. Nxg6
{[%clk 0:02:34.3]} 11... hxg6 {[%clk 0:02:42.8]} 12. h3 {[%clk 0:02:30.8]} 12...
e5 {[%clk 0:02:36.5]} 13. dxe5 {[%clk 0:02:30.5]} 13... Nh5 {[%clk 0:02:24.5]}
14. b4 {[%clk 0:02:30.1]} 14... Nxf4 {[%clk 0:02:22.9]} 15. exf4 {[%clk
0:02:30]} 15... g5 {[%clk 0:02:23.4]} 16. fxg5 {[%clk 0:02:27.5]} 16... Nxe5
{[%clk 0:02:22.3]} 17. f4 {[%clk 0:02:27.4]} 17... Ng4 {[%clk 0:02:16.6]} 18.
Ke2 {[%clk 0:02:20.7]} 18... O-O-O {[%clk 0:02:12.9]} 19. Kf3 {[%clk 0:02:19.5]}
19... f5 {[%clk 0:02:10.7]} 20. Bd3 {[%clk 0:02:19.8]} 20... Ne3 {[%clk
0:01:56.9]} 21. Kxe3 {[%clk 0:02:18.9]} 21... d4+ {[%clk 0:01:57.3]} 22. Kf3
{[%clk 0:02:13.9]} 22... dxc3 {[%clk 0:01:56.5]} 23. Bxf5+ {[%clk 0:02:14.2]}
23... Kb8 {[%clk 0:01:56.9]} 24. bxc3 {[%clk 0:02:14.6]} 24... g6 {[%clk
0:01:53.5]} 25. Bxg6 {[%clk 0:02:13.1]} 25... Bg7 {[%clk 0:01:54]} 26. Rac1
{[%clk 0:02:09.6]} 26... Rd2 {[%clk 0:01:51.4]} 27. g3 {[%clk 0:02:04.6]} 27...
Rhd8 {[%clk 0:01:49.3]} 28. h4 {[%clk 0:02:04]} 28... Ra2 {[%clk 0:01:46.6]} 29.
f5 {[%clk 0:01:55.2]} 1-0

[Event "*** Titled Tuesday Blitz"]
[Site "Chess.com"]
[Date "2020.11.03"]
[Round "7"]
[White "NiranjanNavalgund"]
[Black "Keures"]
[Result "0-1"]
[WhiteElo "2436"]
[BlackElo "2324"]
[TimeControl "180+1"]
[EndTime "11:17:35 PST"]
[Termination "Keures won by resignation"]

1. d4 {[%clk 0:03:00.9]} 1... Nf6 {[%clk 0:02:57.4]} 2. c4 {[%clk 0:03:00.6]}
2... c5 {[%clk 0:02:57]} 3. d5 {[%clk 0:02:59.5]} 3... b5 {[%clk 0:02:51.7]} 4.
Qc2 {[%clk 0:02:59.1]} 4... bxc4 {[%clk 0:02:51]} 5. e4 {[%clk 0:02:58.5]} 5...
d6 {[%clk 0:02:50.9]} 6. Bxc4 {[%clk 0:02:58.1]} 6... g6 {[%clk 0:02:50.4]} 7.
Nf3 {[%clk 0:02:57.8]} 7... Nbd7 {[%clk 0:02:50.2]} 8. O-O {[%clk 0:02:57.3]}
8... Bg7 {[%clk 0:02:50.2]} 9. Nc3 {[%clk 0:02:52.8]} 9... O-O {[%clk
0:02:49.3]} 10. b3 {[%clk 0:02:53]} 10... Nxe4 {[%clk 0:02:44.3]} 11. Bb2 {[%clk
0:02:34.6]} 11... Nxc3 {[%clk 0:02:43.3]} 12. Bxc3 {[%clk 0:02:34.4]} 12... Bxc3
{[%clk 0:02:34.1]} 13. Qxc3 {[%clk 0:02:34.5]} 13... Nf6 {[%clk 0:02:34.4]} 14.
Rfe1 {[%clk 0:02:33.4]} 14... a5 {[%clk 0:02:31.9]} 15. Ng5 {[%clk 0:02:30.3]}
15... Ba6 {[%clk 0:02:25.4]} 16. Qg3 {[%clk 0:02:26.7]} 16... Bxc4 {[%clk
0:02:23.8]} 17. bxc4 {[%clk 0:02:26.7]} 17... Rb8 {[%clk 0:02:21.9]} 18. Qh4
{[%clk 0:02:20.5]} 18... Kg7 {[%clk 0:02:15.3]} 19. Re3 {[%clk 0:02:17.3]} 19...
h6 {[%clk 0:02:11]} 20. Ne4 {[%clk 0:02:15.5]} 20... Nxe4 {[%clk 0:02:09.7]} 21.
Rxe4 {[%clk 0:02:15.5]} 21... e5 {[%clk 0:01:57.4]} 22. Qh3 {[%clk 0:02:05.7]}
22... Qc8 {[%clk 0:01:48]} 23. g4 {[%clk 0:02:05]} 23... f5 {[%clk 0:01:44.7]}
24. gxf5 {[%clk 0:02:03.2]} 24... Qxf5 {[%clk 0:01:45.6]} 25. Qg2 {[%clk
0:02:02.2]} 25... Rb2 {[%clk 0:01:40.9]} 26. Rf1 {[%clk 0:01:57.1]} 26... Rxa2
{[%clk 0:01:38.7]} 27. Qg3 {[%clk 0:01:56.8]} 27... Qxe4 {[%clk 0:01:35]} 28. h4
{[%clk 0:01:54.2]} 28... Qf4 {[%clk 0:01:31.3]} 29. Qg2 {[%clk 0:01:54.4]} 29...
Rxf2 {[%clk 0:01:28.4]} 30. Rxf2 {[%clk 0:01:53.9]} 30... Qxf2+ {[%clk
0:01:29.3]} 0-1

[Event "*** Titled Tuesday Blitz"]
[Site "Chess.com"]
[Date "2020.11.03"]
[Round "7"]
[White "Chamal_Gedgafov"]
[Black "TurboSteen"]
[Result "0-1"]
[WhiteElo "2116"]
[BlackElo "2015"]
[TimeControl "180+1"]
[EndTime "11:17:44 PST"]
[Termination "TurboSteen won by resignation"]

1. d4 {[%clk 0:03:00.9]} 1... Nf6 {[%clk 0:02:56.6]} 2. c4 {[%clk 0:03:00.6]}
2... g6 {[%clk 0:02:55.1]} 3. Nc3 {[%clk 0:03:01]} 3... d5 {[%clk 0:02:52.8]} 4.
cxd5 {[%clk 0:03:00.1]} 4... Nxd5 {[%clk 0:02:48.5]} 5. e4 {[%clk 0:03:00.7]}
5... Nxc3 {[%clk 0:02:37.7]} 6. bxc3 {[%clk 0:03:01.6]} 6... Bg7 {[%clk
0:02:35.6]} 7. Be3 {[%clk 0:03:01.9]} 7... c5 {[%clk 0:02:22.9]} 8. Nf3 {[%clk
0:03:01.6]} 8... O-O {[%clk 0:02:21.7]} 9. Qd2 {[%clk 0:03:01.1]} 9... Qa5
{[%clk 0:02:19.9]} 10. Rc1 {[%clk 0:02:59.4]} 10... cxd4 {[%clk 0:02:18.3]} 11.
cxd4 {[%clk 0:02:58.3]} 11... Qxd2+ {[%clk 0:02:18.3]} 12. Nxd2 {[%clk
0:02:57.1]} 12... Nd7 {[%clk 0:02:16.4]} 13. Be2 {[%clk 0:02:51.4]} 13... f5
{[%clk 0:02:15.2]} 14. e5 {[%clk 0:02:48]} 14... f4 {[%clk 0:02:13.3]} 15. Bf3
{[%clk 0:02:35]} 15... fxe3 {[%clk 0:02:11.1]} 16. fxe3 {[%clk 0:02:35.9]} 16...
e6 {[%clk 0:02:08.5]} 17. Nc4 {[%clk 0:02:26.2]} 17... Nb6 {[%clk 0:02:05.9]}
18. Nxb6 {[%clk 0:02:20.6]} 18... axb6 {[%clk 0:02:04.7]} 19. O-O {[%clk
0:02:20.1]} 19... Rxa2 {[%clk 0:02:02.2]} 20. Rc7 {[%clk 0:02:18.1]} 20... Bh6
{[%clk 0:02:00.4]} 21. Re1 {[%clk 0:02:16.8]} 21... b5 {[%clk 0:01:46.7]} 22. e4
{[%clk 0:02:11.1]} 22... b4 {[%clk 0:01:44.4]} 23. Rc4 {[%clk 0:02:06.3]} 23...
b3 {[%clk 0:01:42.9]} 24. Rb4 {[%clk 0:02:06]} 24... b2 {[%clk 0:01:42.1]} 25.
d5 {[%clk 0:01:55.4]} 25... Bd2 {[%clk 0:01:36.8]} 26. Rxb2 {[%clk 0:01:43.9]}
26... Rxb2 {[%clk 0:01:34.5]} 27. Re2 {[%clk 0:01:44]} 27... Bc3 {[%clk
0:01:29.6]} 28. Rxb2 {[%clk 0:01:41.8]} 28... Bxb2 {[%clk 0:01:27.5]} 0-1

[Event "*** Titled Tuesday Blitz"]
[Site "Chess.com"]
[Date "2020.11.03"]
[Round "7"]
[White "Bodnar_Mykola"]
[Black "CaspiIsrael"]
[Result "0-1"]
[WhiteElo "2407"]
[BlackElo "2605"]
[TimeControl "180+1"]
[EndTime "11:17:47 PST"]
[Termination "CaspiIsrael won by resignation"]

1. e4 {[%clk 0:03:00.9]} 1... d5 {[%clk 0:02:55]} 2. exd5 {[%clk 0:03:00.5]}
2... Qxd5 {[%clk 0:02:55.8]} 3. Nc3 {[%clk 0:03:00.7]} 3... Qd6 {[%clk 0:02:56]}
4. d4 {[%clk 0:03:00.5]} 4... Nf6 {[%clk 0:02:56.3]} 5. Nf3 {[%clk 0:03:00.7]}
5... a6 {[%clk 0:02:56.8]} 6. g3 {[%clk 0:03:00.3]} 6... Bg4 {[%clk 0:02:55.2]}
7. Bg2 {[%clk 0:03:00.4]} 7... Nc6 {[%clk 0:02:55.5]} 8. Bf4 {[%clk 0:03:00]}
8... Qb4 {[%clk 0:02:54.9]} 9. a3 {[%clk 0:02:58.1]} 9... Qxb2 {[%clk
0:02:53.3]} 10. Na4 {[%clk 0:02:55.3]} 10... Qb5 {[%clk 0:02:53.1]} 11. c4
{[%clk 0:02:32.3]} 11... Qxc4 {[%clk 0:02:49.3]} 12. Rc1 {[%clk 0:02:32.1]}
12... Qe6+ {[%clk 0:02:49.1]} 13. Kf1 {[%clk 0:02:32.4]} 13... Nd5 {[%clk
0:02:18]} 14. Nc5 {[%clk 0:02:22.4]} 14... Qc8 {[%clk 0:02:16.6]} 15. Qb3 {[%clk
0:02:13.5]} 15... Nxf4 {[%clk 0:01:52.9]} 16. gxf4 {[%clk 0:02:14.4]} 16... Ra7
{[%clk 0:01:45.8]} 17. Ng5 {[%clk 0:02:03.1]} 17... Nd8 {[%clk 0:01:39.5]} 18.
Qa4+ {[%clk 0:01:16.8]} 18... Bd7 {[%clk 0:01:36.8]} 19. Qc4 {[%clk 0:01:11.5]}
19... Bb5 {[%clk 0:01:31.9]} 0-1

[Event "*** Titled Tuesday Blitz"]
[Site "Chess.com"]
[Date "2020.11.03"]
[Round "7"]
[White "Tenamu"]
[Black "PetrolulSah"]
[Result "0-1"]
[WhiteElo "2343"]
[BlackElo "2195"]
[TimeControl "180+1"]
[EndTime "11:17:53 PST"]
[Termination "PetrolulSah won by resignation"]

1. d4 {[%clk 0:02:55.5]} 1... Nf6 {[%clk 0:02:58.1]} 2. Nc3 {[%clk 0:02:54.7]}
2... d5 {[%clk 0:02:57.9]} 3. Bf4 {[%clk 0:02:53.4]} 3... g6 {[%clk 0:02:51.4]}
4. e3 {[%clk 0:02:53.4]} 4... Bg7 {[%clk 0:02:51.2]} 5. h4 {[%clk 0:02:52.1]}
5... h5 {[%clk 0:02:46.7]} 6. Nf3 {[%clk 0:02:49.6]} 6... O-O {[%clk 0:02:46.4]}
7. Ne5 {[%clk 0:02:48.6]} 7... c5 {[%clk 0:02:30.7]} 8. dxc5 {[%clk 0:02:41.9]}
8... Qa5 {[%clk 0:02:29.3]} 9. Qd4 {[%clk 0:02:39.1]} 9... Nbd7 {[%clk 0:02:20]}
10. b4 {[%clk 0:02:36.6]} 10... Qa3 {[%clk 0:01:56.6]} 11. Nb5 {[%clk
0:02:31.6]} 11... Qa4 {[%clk 0:01:56.3]} 12. Nc7 {[%clk 0:02:19]} 12... Ng4
{[%clk 0:01:55.6]} 13. Bb5 {[%clk 0:02:13.7]} 13... Qxc2 {[%clk 0:01:35]} 14.
Bxd7 {[%clk 0:02:10]} 14... Qxf2+ {[%clk 0:01:30.4]} 15. Kd1 {[%clk 0:02:08.4]}
15... Bxd7 {[%clk 0:01:25.3]} 16. a4 {[%clk 0:01:46.1]} 16... Bxe5 {[%clk
0:01:08.2]} 17. Bxe5 {[%clk 0:01:43.1]} 17... Nxe3+ {[%clk 0:01:08]} 0-1

[Event "*** Titled Tuesday Blitz"]
[Site "Chess.com"]
[Date "2020.11.03"]
[Round "7"]
[White "fabianvivasz"]
[Black "lelajavakhishvili"]
[Result "1-0"]
[WhiteElo "2383"]
[BlackElo "2517"]
[TimeControl "180+1"]
[EndTime "11:18:15 PST"]
[Termination "fabianvivasz won by resignation"]

1. e4 {[%clk 0:03:00.9]} 1... c5 {[%clk 0:02:59.1]} 2. Nc3 {[%clk 0:03:00.5]}
2... e6 {[%clk 0:02:58.4]} 3. Nf3 {[%clk 0:02:57.5]} 3... a6 {[%clk 0:02:58]} 4.
d4 {[%clk 0:02:57.1]} 4... cxd4 {[%clk 0:02:57.9]} 5. Nxd4 {[%clk 0:02:57.2]}
5... b5 {[%clk 0:02:58.5]} 6. Bd3 {[%clk 0:02:54]} 6... Bb7 {[%clk 0:02:55.7]}
7. O-O {[%clk 0:02:52.7]} 7... Nc6 {[%clk 0:02:56.3]} 8. Nxc6 {[%clk 0:02:46]}
8... Bxc6 {[%clk 0:02:57.2]} 9. f4 {[%clk 0:02:29.8]} 9... Bc5+ {[%clk
0:02:53.3]} 10. Kh1 {[%clk 0:02:28.9]} 10... Ne7 {[%clk 0:02:47.9]} 11. f5
{[%clk 0:02:19.2]} 11... f6 {[%clk 0:02:45.6]} 12. Qh5+ {[%clk 0:02:10.9]} 12...
g6 {[%clk 0:02:29.2]} 13. fxg6 {[%clk 0:02:11.8]} 13... Nxg6 {[%clk 0:02:28.5]}
14. Qxc5 {[%clk 0:02:11.5]} 14... Qc7 {[%clk 0:02:24.2]} 15. Rxf6 {[%clk
0:01:58.7]} 15... O-O-O {[%clk 0:02:23.4]} 16. a4 {[%clk 0:01:36.3]} 16... d6
{[%clk 0:01:58.4]} 17. Qf2 {[%clk 0:01:28.6]} 17... b4 {[%clk 0:01:54.1]} 18.
Bxa6+ {[%clk 0:01:26.9]} 18... Kb8 {[%clk 0:01:54.3]} 19. Nb5 {[%clk 0:01:24.4]}
19... Qe7 {[%clk 0:01:50.9]} 20. Bg5 {[%clk 0:00:59.7]} 20... Bxb5 {[%clk
0:01:39.2]} 21. Qb6+ {[%clk 0:00:49.8]} 1-0

[Event "*** Titled Tuesday Blitz"]
[Site "Chess.com"]
[Date "2020.11.03"]
[Round "7"]
[White "annacramling"]
[Black "beautroll"]
[Result "0-1"]
[WhiteElo "1989"]
[BlackElo "2353"]
[TimeControl "180+1"]
[EndTime "11:18:18 PST"]
[Termination "beautroll won by checkmate"]

1. d4 {[%clk 0:03:00.9]} 1... Nf6 {[%clk 0:02:58.2]} 2. c4 {[%clk 0:02:53.4]}
2... g6 {[%clk 0:02:58]} 3. Nc3 {[%clk 0:02:51.1]} 3... Bg7 {[%clk 0:02:58.2]}
4. e4 {[%clk 0:02:51.4]} 4... d6 {[%clk 0:02:58.3]} 5. h3 {[%clk 0:02:50.2]}
5... O-O {[%clk 0:02:57.7]} 6. Bg5 {[%clk 0:02:49.9]} 6... c5 {[%clk 0:02:56]}
7. d5 {[%clk 0:02:50.3]} 7... h6 {[%clk 0:02:56]} 8. Be3 {[%clk 0:02:49]} 8...
e6 {[%clk 0:02:55.5]} 9. Bd3 {[%clk 0:02:49.1]} 9... exd5 {[%clk 0:02:54.6]} 10.
exd5 {[%clk 0:02:50]} 10... Re8 {[%clk 0:02:50.5]} 11. Nf3 {[%clk 0:02:39.1]}
11... a6 {[%clk 0:02:40.6]} 12. a4 {[%clk 0:02:37.9]} 12... Nbd7 {[%clk
0:02:36.2]} 13. O-O {[%clk 0:02:33.3]} 13... Ne5 {[%clk 0:02:22.3]} 14. Nxe5
{[%clk 0:02:32.5]} 14... Rxe5 {[%clk 0:02:23.2]} 15. Qd2 {[%clk 0:02:27.9]}
15... Kh7 {[%clk 0:02:21.9]} 16. f4 {[%clk 0:02:24.5]} 16... Rxe3 {[%clk
0:02:18.2]} 17. Qxe3 {[%clk 0:02:23.9]} 17... Ng4 {[%clk 0:02:06.1]} 18. Qd2
{[%clk 0:02:07.5]} 18... Bd4+ {[%clk 0:02:05.5]} 19. Kh1 {[%clk 0:02:07.4]}
19... Qh4 {[%clk 0:02:04.5]} 20. Ne4 {[%clk 0:01:32.8]} 20... f5 {[%clk
0:01:54.1]} 21. Nxd6 {[%clk 0:01:21.1]} 21... Qg3 {[%clk 0:01:49.1]} 22. hxg4
{[%clk 0:00:32.8]} 22... Qh4# {[%clk 0:01:48.6]} 0-1

[Event "*** Titled Tuesday Blitz"]
[Site "Chess.com"]
[Date "2020.11.03"]
[Round "7"]
[White "AndrewMcStone"]
[Black "yourstrulyme"]
[Result "0-1"]
[WhiteElo "2137"]
[BlackElo "2415"]
[TimeControl "180+1"]
[EndTime "11:18:18 PST"]
[Termination "yourstrulyme won by resignation"]

1. d4 {[%clk 0:03:00.9]} 1... Nf6 {[%clk 0:03:00.3]} 2. c4 {[%clk 0:02:59.3]}
2... e6 {[%clk 0:03:00.9]} 3. Nc3 {[%clk 0:02:59]} 3... d5 {[%clk 0:03:01.4]} 4.
cxd5 {[%clk 0:02:58.2]} 4... exd5 {[%clk 0:03:02.3]} 5. Bg5 {[%clk 0:02:56.2]}
5... Be7 {[%clk 0:03:02.8]} 6. e3 {[%clk 0:02:54.3]} 6... c6 {[%clk 0:03:03.3]}
7. Bd3 {[%clk 0:02:54]} 7... Nbd7 {[%clk 0:02:59.2]} 8. Qc2 {[%clk 0:02:54.3]}
8... Nh5 {[%clk 0:02:59.4]} 9. Bxe7 {[%clk 0:02:53.1]} 9... Qxe7 {[%clk
0:03:00.3]} 10. Nf3 {[%clk 0:02:42.1]} 10... g6 {[%clk 0:03:00.6]} 11. h3 {[%clk
0:02:40]} 11... Ndf6 {[%clk 0:02:59.3]} 12. g4 {[%clk 0:02:35.6]} 12... Ng7
{[%clk 0:02:59]} 13. O-O-O {[%clk 0:02:35]} 13... Be6 {[%clk 0:02:56.8]} 14. Ne5
{[%clk 0:02:31.9]} 14... O-O-O {[%clk 0:02:54]} 15. Kb1 {[%clk 0:02:31.8]} 15...
Kb8 {[%clk 0:02:53.9]} 16. Na4 {[%clk 0:02:26.9]} 16... Nge8 {[%clk 0:02:35.1]}
17. Nc5 {[%clk 0:02:17.7]} 17... Nd6 {[%clk 0:02:33.9]} 18. Rc1 {[%clk
0:01:41.6]} 18... Nfe4 {[%clk 0:02:23.6]} 19. Nxe4 {[%clk 0:01:03.5]} 19... dxe4
{[%clk 0:02:24.5]} 20. Bxe4 {[%clk 0:00:58.6]} 20... Nxe4 {[%clk 0:02:24.1]} 21.
Qxe4 {[%clk 0:00:58.7]} 21... f6 {[%clk 0:02:24.6]} 22. Nxc6+ {[%clk 0:00:34.5]}
22... bxc6 {[%clk 0:02:25.5]} 23. Qxc6 {[%clk 0:00:34.4]} 23... Bd5 {[%clk
0:02:26]} 24. Qb5+ {[%clk 0:00:30.7]} 24... Qb7 {[%clk 0:02:26.5]} 25. Qxb7+
{[%clk 0:00:29.8]} 25... Kxb7 {[%clk 0:02:27.4]} 26. Rhe1 {[%clk 0:00:25.8]}
26... Rc8 {[%clk 0:02:27.9]} 27. Rxc8 {[%clk 0:00:18.1]} 27... Rxc8 {[%clk
0:02:28.8]} 28. e4 {[%clk 0:00:18.7]} 28... Re8 {[%clk 0:02:28.9]} 29. f3 {[%clk
0:00:18.3]} 29... f5 {[%clk 0:02:27.2]} 30. gxf5 {[%clk 0:00:18.3]} 30... gxf5
{[%clk 0:02:28.1]} 31. Rg1 {[%clk 0:00:17.8]} 31... fxe4 {[%clk 0:02:26.5]} 32.
Rg7+ {[%clk 0:00:17.5]} 32... Kb6 {[%clk 0:02:25.7]} 0-1

[Event "*** Titled Tuesday Blitz"]
[Site "Chess.com"]
[Date "2020.11.03"]
[Round "7"]
[White "CraiggoryC"]
[Black "ethylalcohol"]
[Result "1-0"]
[WhiteElo "2282"]
[BlackElo "2078"]
[TimeControl "180+1"]
[EndTime "11:18:47 PST"]
[Termination "CraiggoryC won by resignation"]

1. e4 {[%clk 0:03:00.9]} 1... e6 {[%clk 0:02:58.4]} 2. d4 {[%clk 0:03:00.5]}
2... d5 {[%clk 0:02:58.7]} 3. e5 {[%clk 0:03:00.9]} 3... c5 {[%clk 0:02:58.4]}
4. c3 {[%clk 0:03:01.5]} 4... Nc6 {[%clk 0:02:58.9]} 5. Nf3 {[%clk 0:03:02]}
5... Qb6 {[%clk 0:02:59.2]} 6. a3 {[%clk 0:03:01.7]} 6... Nge7 {[%clk
0:02:58.7]} 7. b4 {[%clk 0:03:02]} 7... cxd4 {[%clk 0:02:56.8]} 8. cxd4 {[%clk
0:03:02.9]} 8... Nf5 {[%clk 0:02:57.1]} 9. Be3 {[%clk 0:02:57.4]} 9... Nxe3
{[%clk 0:02:55.4]} 10. fxe3 {[%clk 0:02:58.3]} 10... Be7 {[%clk 0:02:53.2]} 11.
Bd3 {[%clk 0:02:55.4]} 11... O-O {[%clk 0:02:48.9]} 12. O-O {[%clk 0:02:55.1]}
12... f6 {[%clk 0:02:48.9]} 13. exf6 {[%clk 0:02:48.5]} 13... Bxf6 {[%clk
0:02:46.5]} 14. Nc3 {[%clk 0:02:48.1]} 14... Bd7 {[%clk 0:02:43.1]} 15. Na4
{[%clk 0:02:47.5]} 15... Qc7 {[%clk 0:02:37.7]} 16. Rc1 {[%clk 0:02:46.8]} 16...
Qd6 {[%clk 0:02:22]} 17. Nc5 {[%clk 0:02:45.4]} 17... Bc8 {[%clk 0:02:16.1]} 18.
Bb1 {[%clk 0:02:15.9]} 18... Ne7 {[%clk 0:02:11.2]} 19. Ne5 {[%clk 0:02:13.5]}
19... Bxe5 {[%clk 0:02:05]} 20. Bxh7+ {[%clk 0:01:42.6]} 20... Kxh7 {[%clk
0:01:58.5]} 21. Qh5+ {[%clk 0:01:39.5]} 21... Kg8 {[%clk 0:01:54.8]} 22. Rxf8+
{[%clk 0:01:32.1]} 22... Kxf8 {[%clk 0:01:52.3]} 23. dxe5 {[%clk 0:01:27.6]}
23... Qd8 {[%clk 0:01:44.9]} 24. Qh8+ {[%clk 0:01:08.3]} 24... Ng8 {[%clk
0:01:02.3]} 25. Rf1+ {[%clk 0:01:04]} 1-0